bitfinex/quotes_ETHUSD_20251006
["timestamp","ask_amount","ask_price","bid_price","bid_amount"]
[1759774283025,15.992,4690.9,4690.8,2.4]
[1759774283242,15.992,4690.9,4690.8,4.815]
[1759774283543,18.12378707,4690.9,4690.8,4.815]
[1759774283842,17.222,4690.9,4690.8,4.815]
[1759774284021,17.222,4690.9,4690.8,18.43713]
[1759774284223,17.222,4690.9,4690.8,15.712783]
[1759774284525,17.222,4690.9,4690.8,9.002215]
[1759774285010,17.222,4690.9,4690.8,19.677128]
[1759774285211,18.452,4690.9,4690.8,19.677128]
[1759774285929,18.452,4690.9,4690.8,9.222616]
[1759774286156,18.452,4690.9,4690.8,8.718779]
[1759774286329,18.452,4690.9,4690.8,7.461751]
[1759774286532,19.682,4690.9,4690.8,7.372796]
[1759774287316,19.682,4690.9,4690.8,8.27636]
[1759774287850,19.682,4690.9,4690.8,7.415402]
[1759774288070,20.912,4690.9,4690.8,7.415402]
[1759774288216,20.912,4690.9,4690.8,8.402783]
[1759774289059,20.912,4690.9,4690.8,8.875283]
[1759774289217,20.912,4690.9,4690.8,35.2875]
[1759774289416,22.142,4690.9,4690.8,35.2875]
[1759774289648,22.142,4690.9,4690.8,37.41933252]
[1759774289848,22.142,4690.9,4690.8,35.2875]
[1759774290728,22.142,4690.9,4690.8,37.41933252]
[1759774290930,23.372,4690.9,4690.8,37.41933252]
[1759774291249,19.03447598,4690.9,4690.8,37.41933252]
[1759774292154,15.92695196,4690.9,4690.8,37.41933252]
[1759774292451,15.92695196,4690.9,4690.8,37.6654037]
[1759774292753,15.92695196,4690.9,4690.8,40.27264308]
[1759774293255,15.92695196,4690.9,4690.8,40.37904308]
[1759774293420,15.92695196,4690.9,4690.8,35.75004308]
[1759774293617,17.15695196,4690.9,4690.8,33.61821056]
[1759774293822,17.15695196,4690.9,4690.8,27.81977552]
[1759774294332,17.15695196,4690.9,4690.8,34.18896052]
[1759774295148,18.38695196,4690.9,4690.8,31.97396052]
[1759774295350,18.38695196,4690.9,4690.8,37.52473252]
[1759774295854,18.38695196,4690.9,4690.8,39.73973252]
[1759774296217,18.38695196,4690.9,4690.8,9.73973252]
[1759774296422,19.61695196,4690.9,4690.8,9.73973252]
[1759774296622,19.61695196,4690.9,4690.8,39.73973252]
[1759774297461,19.61695196,4690.9,4690.8,9.73973252]
[1759774297871,20.84695196,4690.9,4690.8,39.73973252]
[1759774299232,22.07695196,4690.9,4690.8,39.9858037]
[1759774299433,22.07695196,4690.9,4690.8,35.3568037]
[1759774299647,22.07695196,4690.9,4690.8,39.9848037]
[1759774300071,17.73942794,4690.9,4690.8,39.9848037]
[1759774300534,18.96942794,4690.9,4690.8,39.9848037]
[1759774301653,18.96942794,4690.9,4690.8,39.73873252]
[1759774301856,20.19942794,4690.9,4690.8,39.73873252]
[1759774302446,20.19942794,4690.9,4690.8,9.73873252]
[1759774302652,20.19942794,4690.9,4690.8,39.73873252]
[1759774303671,21.42942794,4690.9,4690.8,39.73873252]
[1759774304049,21.42942794,4690.9,4690.8,35.3568037]
[1759774304237,21.42942794,4690.9,4690.8,39.9848037]
[1759774304784,17.20830821,4690.9,4690.8,40.25681641]
[1759774304994,17.20830821,4690.9,4690.8,40.46991641]
[1759774305153,14.33413041,4690.9,4690.8,41.1091861]
[1759774305791,8.88301068,4690.9,4690.8,41.1091861]
[1759774306174,10.11301068,4690.9,4690.8,41.1091861]
[1759774306690,10.11301068,4690.9,4690.8,35.27750221]
[1759774306983,10.11301068,4690.9,4690.8,39.90550221]
[1759774307657,11.34301068,4690.9,4690.8,40.36950221]
[1759774307859,11.34301068,4690.9,4690.8,40.37050221]
[1759774308192,11.34501068,4690.9,4690.8,40.37050221]
[1759774308397,11.34501068,4690.9,4690.8,40.36950221]
[1759774309195,12.57501068,4690.9,4690.8,40.36950221]
[1759774310495,13.80501068,4690.9,4690.8,35.27850221]
[1759774310690,13.80501068,4690.9,4690.8,39.90550221]
[1759774310894,13.80501068,4690.9,4690.8,40.36950221]
[1759774311702,13.80501068,4690.9,4690.8,10.36950221]
[1759774312290,15.03501068,4690.9,4690.8,40.36950221]
[1759774312503,15.03501068,4690.9,4690.8,40.61557339]
[1759774312875,10.9000917,4690.9,4690.8,40.8875861]
[1759774313076,0.002,4691.4,4691.3,2.13160531]
[1759774313422,0.002,4691.4,4691.3,39.5906892]
[1759774313732,0.4694,4691.4,4691.3,31.89821531]
[1759774313881,0.4694,4691.4,4691.3,39.22360131]
[1759774314906,1.6994,4691.4,4691.3,41.28660531]
[1759774315107,1.232,4691.4,4691.3,41.28660531]
[1759774315899,1.232,4691.4,4691.3,36.65960531]
[1759774316097,1.232,4691.4,4691.3,41.28660531]
[1759774316414,2.462,4691.4,4691.3,41.28660531]
[1759774316615,2.462,4691.4,4691.3,36.65960531]
[1759774316920,2.462,4691.4,4691.3,41.28660531]
[1759774317688,3.692,4691.4,4691.3,41.28660531]
[1759774319320,4.1594,4691.4,4691.3,2.128]
[1759774319520,6.78934,4691.4,4690.8,0.001]
[1759774319814,6.78934,4691.4,4690.9,5.959162]
[1759774320055,2.59900704,4691.3,4691.0,6.72801]
[1759774320217,0.4674,4691.3,4691.1,4.813]
[1759774320416,8.45350966,4691.4,4691.2,2.086871]
[1759774320616,8.45350966,4691.4,4691.3,2.413]
[1759774320813,9.68350966,4691.4,4691.3,2.413]
[1759774321011,10.15090966,4691.4,4691.3,2.413]
[1759774322543,11.38090966,4691.4,4691.3,2.413]
[1759774323111,9.35574,4691.4,4691.3,2.413]
[1759774323547,8.88834,4691.4,4691.3,15.755583]
[1759774323775,7.9391,4691.4,4691.3,16.3657]
[1759774323949,9.1691,4691.4,4691.3,16.0987]
[1759774324152,9.1691,4691.4,4691.3,14.921009]
[1759774324543,9.1691,4691.4,4691.3,13.093141]
[1759774325350,10.3991,4691.4,4691.3,13.093141]
[1759774325544,10.3991,4691.4,4691.3,13.004394]
[1759774325931,9.9484,4691.4,4691.3,13.004394]
[1759774326301,9.842,4691.4,4691.3,13.004394]
[1759774326422,9.842,4691.4,4691.3,9.188959]
[1759774326623,9.842,4691.4,4691.3,15.001768]
[1759774326823,11.072,4691.4,4691.3,15.001768]
[1759774327052,11.072,4691.4,4691.3,17.13337331]
[1759774327253,11.072,4691.4,4691.3,17.57027331]
[1759774327755,11.072,4691.4,4691.3,27.983796]
[1759774327944,11.072,4691.4,4691.3,25.993749]
[1759774328136,12.302,4691.4,4691.3,23.053811]
[1759774328527,12.302,4691.4,4691.3,7.05100531]
[1759774328945,12.302,4691.4,4691.3,29.32488231]
[1759774329147,12.302,4691.4,4691.3,28.98760831]
[1759774329557,13.532,4691.4,4691.3,29.42450831]
[1759774329720,13.532,4691.4,4691.3,7.48790531]
[1759774329924,13.532,4691.4,4691.3,35.07490531]
[1759774330249,13.532,4691.4,4691.3,39.70190531]
[1759774331161,14.762,4691.4,4691.3,39.70190531]
[1759774332662,15.992,4691.4,4691.3,9.70190531]
[1759774333044,15.992,4691.4,4691.3,39.70190531]
[1759774334041,17.222,4691.4,4691.3,39.70190531]
[1759774334241,17.222,4691.4,4691.3,27.88335331]
[1759774334465,17.222,4691.4,4691.3,22.29370531]
[1759774334872,17.222,4691.4,4691.3,25.18536031]
[1759774335083,17.222,4691.4,4691.3,24.26699431]
[1759774335569,18.452,4691.4,4691.3,24.26699431]
[1759774335759,18.452,4691.4,4691.3,31.77026631]
[1759774335961,18.452,4691.4,4691.3,30.84816631]
[1759774336169,18.452,4691.4,4691.3,30.32632431]
[1759774336474,18.452,4691.4,4691.3,29.88942431]
[1759774336778,18.452,4691.4,4691.3,7.05000531]
[1759774336941,19.682,4691.4,4691.3,34.64542431]
[1759774337476,19.682,4691.4,4691.3,27.16543331]
[1759774337873,19.682,4691.4,4691.3,29.51071231]
[1759774338379,20.912,4691.4,4691.3,29.51071231]
[1759774338893,20.912,4691.4,4691.3,31.91230831]
[1759774339866,20.912,4691.4,4691.3,7.05000531]
[1759774340165,22.142,4691.4,4691.3,29.89630831]
[1759774340642,22.142,4691.4,4691.3,28.18980831]
[1759774340899,22.142,4691.4,4691.3,27.83080831]
[1759774341107,22.142,4691.4,4691.3,22.40599872]
[1759774341270,22.142,4691.4,4691.3,26.94960403]
[1759774341604,23.372,4691.4,4691.3,26.94960403]
[1759774342168,23.372,4691.4,4691.3,27.59828503]
[1759774342871,24.602,4691.4,4691.3,27.59828503]
[1759774343071,24.602,4691.4,4691.3,31.67654903]
[1759774343502,24.602,4691.4,4691.3,31.43554903]
[1759774344067,24.602,4691.4,4691.3,38.12623903]
[1759774344263,25.832,4691.4,4691.3,38.12623903]
[1759774344468,25.832,4691.4,4691.3,37.69748803]
[1759774344704,25.832,4691.4,4691.3,37.26058803]
[1759774344999,25.832,4691.4,4691.3,35.05259503]
[1759774345303,25.832,4691.4,4691.3,36.23735303]
[1759774346108,27.062,4691.4,4691.3,37.68933903]
[1759774346475,27.062,4691.4,4691.3,38.12623903]
[1759774347506,28.292,4691.4,4691.3,38.12623903]
[1759774347689,28.292,4691.4,4691.3,37.00763603]
[1759774347890,28.292,4691.4,4691.3,35.70391703]
[1759774348091,28.292,4691.4,4691.3,35.24843803]
[1759774349073,29.522,4691.4,4691.3,7.68933903]
[1759774349606,29.522,4691.4,4691.3,31.04130603]
[1759774349904,29.522,4691.4,4691.3,31.08390203]
[1759774350217,29.522,4691.4,4691.3,7.68933903]
[1759774350504,30.752,4691.4,4691.3,7.68933903]
[1759774350693,30.752,4691.4,4691.3,30.87955603]
[1759774350894,30.752,4691.4,4691.3,32.57955603]
[1759774351272,30.752,4691.4,4691.3,32.92055603]
[1759774351473,30.752,4691.4,4691.3,31.56155603]
[1759774351908,31.982,4691.4,4691.3,30.71155603]
[1759774352291,31.982,4691.4,4691.3,7.68933903]
[1759774352701,31.982,4691.4,4691.3,33.83537603]
[1759774352915,31.982,4691.4,4691.3,33.82837603]
[1759774353085,31.982,4691.4,4691.3,34.29337603]
[1759774353401,33.212,4691.4,4691.3,38.15433903]
[1759774353822,25.65881526,4691.4,4691.3,38.04793903]
[1759774353974,25.65881526,4691.4,4691.3,45.40041021]
[1759774354409,25.65881526,4691.4,4691.3,47.31076412]
[1759774354613,26.88881526,4691.4,4691.3,47.31076412]
[1759774354910,20.51010347,4691.4,4691.3,47.31076412]
[1759774355307,20.51010347,4691.4,4691.3,15.40041021]
[1759774355812,14.13139168,4691.4,4691.3,45.40041021]
[1759774356009,15.36139168,4691.4,4691.3,44.43650906]
[1759774356209,15.36139168,4691.4,4691.3,17.87675503]
[1759774356410,15.36139168,4691.4,4691.3,46.90333903]
[1759774357409,16.59139168,4691.4,4691.3,42.27733903]
[1759774357660,16.59139168,4691.4,4691.3,36.62451472]
[1759774358182,16.59139168,4691.4,4691.3,38.75612003]
[1759774358496,16.59139168,4691.4,4691.3,39.90333903]
[1759774358700,16.59139168,4691.4,4691.3,6.94852272]
[1759774358701,18.25969168,4691.4,4691.3,6.94852272]
[1759774358897,18.26169168,4691.4,4691.3,8.721189]
[1759774359310,17.82339168,4691.4,4691.3,10.85279431]
[1759774359483,17.82339168,4691.4,4691.3,31.597837]
[1759774359682,17.82339168,4691.4,4691.3,33.72944231]
[1759774359988,17.82339168,4691.4,4691.3,33.47477931]
[1759774360175,19.05339168,4691.4,4691.3,33.47477931]
[1759774360379,19.05339168,4691.4,4691.3,37.05000531]
[1759774361531,20.28339168,4691.4,4691.3,37.05000531]
[1759774362407,20.28339168,4691.4,4691.3,7.05000531]
[1759774362617,20.28339168,4691.4,4691.3,37.05000531]
[1759774362795,21.51339168,4691.4,4691.3,37.05000531]
[1759774362995,15.13467989,4691.4,4691.3,44.50840531]
[1759774363200,15.13467989,4691.4,4691.3,45.14766819]
[1759774363409,15.13467989,4691.4,4691.3,15.14766819]
[1759774363613,15.13467989,4691.4,4691.3,47.36166819]
[1759774364027,12.83566597,4691.4,4691.3,47.36166819]
[1759774364227,14.06566597,4691.4,4691.3,47.36166819]
[1759774365730,15.29566597,4691.4,4691.3,47.36166819]
[1759774366402,15.29566597,4691.4,4691.3,47.60773937]
[1759774366601,15.29566597,4691.4,4691.3,49.52083822]
[1759774367043,16.52566597,4691.4,4691.3,49.52083822]
[1759774367742,16.52566597,4691.4,4691.3,49.27476704]
[1759774368462,16.52566597,4691.4,4691.3,47.36166819]
[1759774368739,17.75566597,4691.4,4691.3,47.36166819]
[1759774370254,18.98566597,4691.4,4691.3,47.36166819]
[1759774371447,18.98566597,4691.4,4691.3,42.73566819]
[1759774371746,20.21566597,4691.4,4691.3,47.36066819]
[1759774372247,20.21566597,4691.4,4691.3,46.90226819]
[1759774372614,20.21566597,4691.4,4691.3,47.36066819]
[1759774373014,21.44566597,4691.4,4691.3,47.36066819]
[1759774373718,21.44566597,4691.4,4691.3,42.73566819]
[1759774373948,21.44566597,4691.4,4691.3,47.36066819]
[1759774374450,22.67566597,4691.4,4691.3,47.36066819]
[1759774375447,22.67566597,4691.4,4691.3,47.36166819]
[1759774375659,23.90566597,4691.4,4691.3,47.36166819]
[1759774376467,23.90566597,4691.4,4691.3,47.60773937]
[1759774376670,23.90566597,4691.4,4691.3,49.52083822]
[1759774377461,25.13566597,4691.4,4691.3,49.52083822]
[1759774377836,18.75695418,4691.4,4691.3,49.52083822]
[1759774378163,18.75695418,4691.4,4691.3,47.87975265]
[1759774378531,17.11311285,4691.4,4691.3,47.87975265]
[1759774378737,12.20725653,4691.4,4691.3,47.87975265]
[1759774379034,10.73440106,4691.4,4691.3,35.27826819]
[1759774379236,10.73440106,4691.4,4691.3,39.90326819]
[1759774379783,10.73440106,4691.4,4691.3,41.81609806]
[1759774380067,11.96440106,4691.4,4691.3,41.81609806]
[1759774381467,13.19440106,4691.4,4691.3,41.81609806]
[1759774382979,14.42440106,4691.4,4691.3,42.52056924]
[1759774383480,8.04568927,4691.4,4691.3,40.87975265]
[1759774384484,2.27568927,4691.4,4691.3,40.87975265]
[1759774385267,2.27568927,4691.4,4691.3,40.63368147]
[1759774385514,2.27568927,4691.4,4691.3,40.87975265]
[1759774385725,2.27568927,4691.4,4691.3,40.63368147]
[1759774386012,3.50568927,4691.4,4691.3,40.63368147]
[1759774387287,4.73568927,4691.4,4691.3,40.63368147]
[1759774387703,2.47485968,4691.4,4691.3,40.63368147]
[1759774388020,1.50674929,4691.4,4691.3,40.63368147]
[1759774388196,1.50674929,4691.4,4691.3,36.00868147]
[1759774388402,1.50674929,4691.4,4691.3,40.63368147]
[1759774388713,1.50674929,4691.4,4691.3,36.00868147]
[1759774389024,2.73674929,4691.4,4691.3,40.63368147]
[1759774390325,2.73674929,4691.4,4691.3,47.63368147]
[1759774390486,3.96674929,4691.4,4691.3,47.63368147]
[1759774390813,3.96674929,4691.4,4691.3,47.17528147]
[1759774391205,3.96674929,4691.4,4691.3,47.82158147]
[1759774391408,3.96674929,4691.4,4691.3,47.60848147]
[1759774391805,1e-08,4691.4,4691.3,49.73318147]
[1759774392139,0.002,4691.8,4691.7,5.37812357]
[1759774392340,1e-08,4691.9,4691.8,3.2467]
[1759774392540,1e-08,4691.9,4691.8,39.77129142]
[1759774392737,2.13010923,4694.6,4691.8,39.77129142]
[1759774392738,1e-08,4692.4,4692.3,2.97785103]
[1759774392929,1e-08,4692.4,4692.3,40.18686431]
[1759774393226,1e-08,4692.4,4692.3,40.62006431]
[1759774393227,1.23000001,4692.4,4692.3,40.62006431]
[1759774393432,1.23000001,4692.4,4692.3,41.25907256]
[1759774394126,0.473,4694.0,4692.8,2.13092396]
[1759774394327,0.473,4694.0,4692.8,10.97719963]
[1759774394520,0.002,4694.0,4692.8,41.78881291]
[1759774394723,1.24,4692.9,4692.8,42.42781403]
[1759774394936,1.24,4692.9,4692.8,40.51854413]
[1759774395140,1.24,4692.9,4692.8,42.42787508]
[1759774395467,1.24,4692.9,4692.8,38.10854413]
[1759774395913,1.24,4692.9,4692.8,44.64187508]
[1759774396242,2.47,4692.9,4692.8,45.16907508]
[1759774396443,2.47,4692.9,4692.8,38.74214413]
[1759774396918,2.47,4692.9,4692.8,43.36614413]
[1759774397114,2.47,4692.9,4692.8,38.74214413]
[1759774397317,2.47,4692.9,4692.8,42.93294413]
[1759774397520,3.7,4692.9,4692.8,43.36614413]
[1759774397840,3.7,4692.9,4692.8,52.27547508]
[1759774398142,3.7,4692.9,4692.8,50.61215367]
[1759774398340,1.43917041,4692.9,4692.8,50.61215367]
[1759774398515,25.83,4693.7,4692.8,50.61215367]
[1759774398516,25.83,4693.7,4693.1,2.13078775]
[1759774398842,25.83,4693.7,4693.5,2.13060615]
[1759774399019,25.83,4693.7,4693.6,39.17396076]
[1759774399224,25.83,4693.7,4693.6,36.76396076]
[1759774399432,25.83,4693.7,4693.6,42.02691321]
[1759774400243,27.06,4693.7,4693.6,42.02691321]
[1759774401522,28.29,4693.7,4693.6,42.02691321]
[1759774402440,27.49541562,4693.7,4693.6,42.02691321]
[1759774402783,27.40110832,4693.7,4693.6,42.46011321]
[1759774403049,25.01735518,4693.7,4693.6,50.33972275]
[1759774403348,23.95790934,4693.7,4693.6,50.61173603]
[1759774403550,23.42818642,4693.7,4693.6,50.61173603]
[1759774403751,22.63360204,4693.7,4693.6,50.61173603]
[1759774403958,22.10387912,4693.7,4693.6,50.61173603]
[1759774404137,22.53929474,4693.7,4693.6,50.61173603]
[1759774404333,22.00957182,4693.7,4693.6,50.61173603]
[1759774404535,21.74471036,4693.7,4693.6,50.61173603]
[1759774404735,20.95012598,4693.7,4693.6,50.61173603]
[1759774405036,20.42040306,4693.7,4693.6,50.61173603]
[1759774405352,20.59095722,4693.7,4693.6,49.90452275]
[1759774405520,20.32609576,4693.7,4693.6,50.33772275]
[1759774405719,19.79637284,4693.7,4693.6,50.33772275]
[1759774405920,19.26664992,4693.7,4693.6,50.33772275]
[1759774406160,18.99700549,4693.7,4693.6,43.33772275]
[1759774407066,20.22700549,4693.7,4693.6,43.33772275]
[1759774408338,20.22700549,4693.7,4693.6,42.90452275]
[1759774408559,21.45700549,4693.7,4693.6,42.90552275]
[1759774408948,21.45900549,4693.7,4693.6,38.28352275]
[1759774409271,21.45900549,4693.7,4693.6,42.90552275]
[1759774409835,22.68900549,4693.7,4693.6,42.90552275]
[1759774410560,22.68900549,4693.7,4693.6,12.90552275]
[1759774410869,22.68900549,4693.7,4693.6,42.90552275]
[1759774411273,23.91900549,4693.7,4693.6,42.90552275]
[1759774411769,23.91900549,4693.7,4693.6,12.90552275]
[1759774411951,23.91900549,4693.7,4693.6,42.90552275]
[1759774412639,25.14900549,4693.7,4693.6,42.90552275]
[1759774413041,25.14900549,4693.7,4693.6,43.35262275]
[1759774413454,25.14900549,4693.7,4693.6,42.90552275]
[1759774413851,25.14900549,4693.7,4693.6,37.64992275]
[1759774414085,26.82830549,4693.7,4693.6,42.02591321]
[1759774414692,26.82830549,4693.7,4693.6,12.02591321]
[1759774414895,26.82830549,4693.7,4693.6,42.02591321]
[1759774415611,28.05830549,4693.7,4693.6,42.02591321]
[1759774416299,28.04290549,4693.7,4693.6,23.25215121]
[1759774416500,27.60900549,4693.7,4693.6,23.25215121]
[1759774416704,27.60900549,4693.7,4693.6,42.02591321]
[1759774416868,28.83900549,4693.7,4693.6,42.02591321]
[1759774417369,29.27290549,4693.7,4693.6,42.02591321]
[1759774418170,28.83900549,4693.7,4693.6,42.02591321]
[1759774418396,30.06900549,4693.7,4693.6,40.38560921]
[1759774418571,30.50290549,4693.7,4693.6,40.38560921]
[1759774418771,30.50290549,4693.7,4693.6,42.02591321]
[1759774419709,31.73290549,4693.7,4693.6,42.02591321]
[1759774420106,31.29900549,4693.7,4693.6,42.02591321]
[1759774420282,31.29900549,4693.7,4693.6,37.40391321]
[1759774420482,31.29900549,4693.7,4693.6,42.02591321]
[1759774420686,31.29900549,4693.7,4693.6,37.40391321]
[1759774420885,31.29900549,4693.7,4693.6,42.02591321]
[1759774421086,32.52900549,4693.7,4693.6,42.02591321]
[1759774422498,33.75900549,4693.7,4693.6,42.02591321]
[1759774422711,33.75900549,4693.7,4693.6,11.60179445]
[1759774422900,36.32972611,4693.7,4693.6,7.57595245]
[1759774423306,36.32972611,4693.7,4693.6,20.70061645]
[1759774423514,36.32972611,4693.7,4693.6,14.11733445]
[1759774424020,37.55972611,4693.7,4693.6,24.37592821]
[1759774424225,35.42290549,4693.7,4693.6,25.09976721]
[1759774424522,35.42290549,4693.7,4693.6,15.78121645]
[1759774424722,35.42290549,4693.7,4693.6,12.74645545]
[1759774424885,35.42290549,4693.7,4693.6,22.57915345]
[1759774425090,35.42290549,4693.7,4693.6,23.64915345]
[1759774425336,36.65290549,4693.7,4693.6,23.64915345]
[1759774425828,36.65290549,4693.7,4693.6,39.88221721]
[1759774426021,36.65290549,4693.7,4693.6,24.94609745]
[1759774426225,36.65290549,4693.7,4693.6,23.44719545]
[1759774426419,36.65290549,4693.7,4693.6,21.08896445]
[1759774426626,37.88290549,4693.7,4693.6,21.08896445]
[1759774427011,37.88290549,4693.7,4693.6,21.28883245]
[1759774427215,37.88290549,4693.7,4693.6,23.41939321]
[1759774427903,39.11290549,4693.7,4693.6,11.91951321]
[1759774428104,39.11290549,4693.7,4693.6,9.78895245]
[1759774428316,39.11290549,4693.7,4693.6,21.24194745]
[1759774428840,40.76128558,4693.7,4693.6,16.61994745]
[1759774429004,40.76128558,4693.7,4693.6,20.653462]
[1759774429231,41.99128558,4693.7,4693.6,17.647597]
[1759774429452,41.99128558,4693.7,4693.6,17.639597]
[1759774429621,41.99128558,4693.7,4693.6,20.048597]
[1759774429817,41.99128558,4693.7,4693.6,17.920597]
[1759774430144,41.99128558,4693.7,4693.6,19.030768]
[1759774430325,41.99128558,4693.7,4693.6,16.622768]
[1759774430522,43.22128558,4693.7,4693.6,19.031768]
[1759774431144,43.22128558,4693.7,4693.6,18.903721]
[1759774431350,43.22128558,4693.7,4693.6,18.560154]
[1759774431649,41.13900549,4693.7,4693.6,18.560154]
[1759774431848,42.80290549,4693.7,4693.6,18.560154]
[1759774432147,42.80290549,4693.7,4693.6,15.24416]
[1759774432309,42.80290549,4693.7,4693.6,17.65216]
[1759774433145,42.80290549,4693.7,4693.6,19.61823]
[1759774433345,44.03290549,4693.7,4693.6,19.61823]
[1759774433543,46.16972611,4693.7,4693.6,19.61823]
[1759774434223,46.16972611,4693.7,4693.6,20.621899]
[1759774434838,47.39972611,4693.7,4693.6,20.621899]
[1759774435253,47.39972611,4693.7,4693.6,22.818885]
[1759774435850,47.39972611,4693.7,4693.6,21.320535]
[1759774436039,48.62972611,4693.7,4693.6,21.320535]
[1759774436245,48.62972611,4693.7,4693.6,24.114365]
[1759774436246,46.49290549,4693.7,4693.6,24.114365]
[1759774436674,46.05900549,4693.7,4693.6,21.661969]
[1759774436873,46.05900549,4693.7,4693.6,20.898258]
[1759774437249,46.05900549,4693.7,4693.6,20.865939]
[1759774437449,47.28900549,4693.7,4693.6,23.274939]
[1759774438244,47.28900549,4693.7,4693.6,28.449219]
[1759774438444,47.28900549,4693.7,4693.6,25.409118]
[1759774438664,47.28900549,4693.7,4693.6,15.345923]
[1759774438874,50.1219424,4693.7,4693.6,14.978353]
[1759774439094,50.1219424,4693.7,4693.6,14.773499]
[1759774439394,50.1219424,4693.7,4693.6,15.472756]
[1759774440272,51.3519424,4693.7,4693.6,15.472756]
[1759774440479,51.3519424,4693.7,4693.6,15.555254]
[1759774441064,50.18290549,4693.7,4693.6,15.555254]
[1759774441265,50.18290549,4693.7,4693.6,14.871636]
[1759774441576,51.41290549,4693.7,4693.6,6.811564]
[1759774441742,51.41290549,4693.7,4693.6,9.220564]
[1759774442147,51.41290549,4693.7,4693.6,8.732634]
[1759774442381,51.41290549,4693.7,4693.6,8.588387]
[1759774442948,52.64290549,4693.7,4693.6,8.166268]
[1759774443381,54.77972611,4693.7,4693.6,2.41]
[1759774443582,54.34582611,4693.7,4693.6,2.41]
[1759774443787,52.20900549,4693.7,4693.6,4.54056076]
[1759774443983,52.20900549,4693.7,4693.6,5.63170304]
[1759774444197,52.20900549,4693.7,4693.6,5.17960304]
[1759774444399,53.43900549,4693.7,4693.6,5.17960304]
[1759774444803,53.43900549,4693.7,4693.6,20.25910304]
[1759774444990,49.10148147,4693.7,4693.6,38.13810304]
[1759774445693,50.33148147,4693.7,4693.6,38.13810304]
[1759774446001,45.99395745,4693.7,4693.6,38.13810304]
[1759774446779,41.65643343,4693.7,4693.6,38.13810304]
[1759774447305,42.88643343,4693.7,4693.6,38.13810304]
[1759774447491,42.88643343,4693.7,4693.6,8.13810304]
[1759774447688,38.54890941,4693.7,4693.6,8.87840304]
[1759774447917,38.54890941,4693.7,4693.6,39.23081258]
[1759774448197,38.54890941,4693.7,4693.6,36.82181258]
[1759774448384,38.54890941,4693.7,4693.6,36.18821258]
[1759774448567,39.77890941,4693.7,4693.6,40.80921258]
[1759774448766,36.36975691,4693.7,4693.6,40.80921258]
[1759774449867,37.59975691,4693.7,4693.6,40.80921258]
[1759774450771,37.59975691,4693.7,4693.6,36.18821258]
[1759774450964,37.59975691,4693.7,4693.6,40.80921258]
[1759774451211,37.59975691,4693.7,4693.6,40.59611258]
[1759774451369,38.82975691,4693.7,4693.6,40.59611258]
[1759774451570,38.82975691,4693.7,4693.6,40.80921258]
[1759774452298,38.82975691,4693.7,4693.6,36.18821258]
[1759774452493,38.82975691,4693.7,4693.6,35.94220304]
[1759774452694,38.82975691,4693.7,4693.6,39.89800304]
[1759774452925,40.05975691,4693.7,4693.6,40.35010304]
[1759774454310,41.28975691,4693.7,4693.6,40.35010304]
[1759774455623,42.51975691,4693.7,4693.6,40.35010304]
[1759774456919,42.51975691,4693.7,4693.6,35.72910304]
[1759774457125,42.51975691,4693.7,4693.6,40.35010304]
[1759774457126,43.74975691,4693.7,4693.6,40.35010304]
[1759774457718,43.74975691,4693.7,4693.6,10.35010304]
[1759774457937,43.74975691,4693.7,4693.6,40.35010304]
[1759774458526,44.97975691,4693.7,4693.6,40.35010304]
[1759774458910,44.97975691,4693.7,4693.6,35.72910304]
[1759774459119,39.53554816,4693.7,4693.6,40.35010304]
[1759774459349,39.53554816,4693.7,4693.6,35.72910304]
[1759774459647,39.53554816,4693.7,4693.6,40.35010304]
[1759774459844,40.76554816,4693.7,4693.6,40.35010304]
[1759774460245,40.76754816,4693.7,4693.6,40.35010304]
[1759774461414,41.99754816,4693.7,4693.6,40.35010304]
[1759774461619,41.99754816,4693.7,4693.6,40.56320304]
[1759774463354,43.22754816,4693.7,4693.6,40.56320304]
[1759774464431,43.22754816,4693.7,4693.6,40.11110304]
[1759774464626,44.45754816,4693.7,4693.6,40.11110304]
[1759774465845,44.45754816,4693.7,4693.6,35.49010304]
[1759774466055,45.68754816,4693.7,4693.6,39.89800304]
[1759774466562,45.68754816,4693.7,4693.6,46.89800304]
[1759774467380,46.91754816,4693.7,4693.6,46.89800304]
[1759774467990,43.24841945,4693.7,4693.6,47.62211632]
[1759774468158,40.37598754,4693.7,4693.6,47.62211632]
[1759774468880,41.60598754,4693.7,4693.6,47.62211632]
[1759774469376,41.60598754,4693.7,4693.6,47.35010304]
[1759774469580,41.60598754,4693.7,4693.6,39.89800304]
[1759774470060,41.60598754,4693.7,4693.6,35.27700304]
[1759774470269,42.83598754,4693.7,4693.6,39.89800304]
[1759774471690,44.06598754,4693.7,4693.6,40.11110304]
[1759774472858,45.29598754,4693.7,4693.6,40.11110304]
[1759774474387,46.52598754,4693.7,4693.6,40.11110304]
[1759774474772,46.52598754,4693.7,4693.6,20.11138404]
[1759774474957,46.97508754,4693.7,4693.6,8.27814004]
[1759774475164,46.97508754,4693.7,4693.6,11.76289528]
[1759774475364,47.82000706,4693.7,4693.6,14.11139828]
[1759774475861,49.05000706,4693.7,4693.6,14.11139828]
[1759774476060,49.05000706,4693.7,4693.6,17.92874528]
[1759774476297,49.05000706,4693.7,4693.6,19.84469404]
[1759774476503,49.05000706,4693.7,4693.6,17.43769404]
[1759774476699,49.05000706,4693.7,4693.6,15.30713328]
[1759774476912,49.05000706,4693.7,4693.6,14.73854728]
[1759774477217,49.05000706,4693.7,4693.6,13.85401528]
[1759774477218,50.28000706,4693.7,4693.6,13.85401528]
[1759774477407,50.28000706,4693.7,4693.6,6.72594028]
[1759774477586,52.41052243,4693.7,4693.6,3.686898]
[1759774477793,52.41052243,4693.7,4693.6,6.093898]
[1759774477976,52.41052243,4693.7,4693.6,5.298901]
[1759774478185,52.41052243,4693.7,4693.6,2.408]
[1759774478392,52.41052243,4693.7,4693.6,0.001]
[1759774478611,51.51000706,4693.7,4693.6,2.408]
[1759774478796,51.61640706,4693.7,4693.6,0.001]
[1759774478996,51.61640706,4693.7,4693.6,2.408]
[1759774479326,51.61640706,4693.7,4693.6,6.386848]
[1759774479818,51.61640706,4693.7,4693.6,6.822915]
[1759774479989,52.84640706,4693.7,4693.6,6.822915]
[1759774481009,52.84640706,4693.7,4693.6,10.606686]
[1759774481381,54.07640706,4693.7,4693.6,10.606686]
[1759774481802,53.62730706,4693.7,4693.6,13.006686]